lending/lending_fUSD_20240928
["ID","MTS","AMOUNT","RATE_DAILY","PERIOD"]
[339364478,1727481745560,500.0,0.00015,30]
[339364479,1727481745881,500.0,0.00015,30]
[339364480,1727481746237,843.20094943,0.00015,30]
[339364481,1727481751845,500.0,0.00015,30]
[339364482,1727481752173,500.0,0.00015,30]
[339364483,1727481752518,500.0,0.00015,30]
[339364484,1727481752874,500.0,0.00015,30]
[339364485,1727481755618,500.0,0.00015,30]
[339364486,1727481755791,500.0,0.00015,30]
[339364487,1727481756431,500.0,0.00015,30]
[339364488,1727481757599,500.0,0.00015,30]
[339364489,1727481757970,500.0,0.00015,30]
[339364490,1727481758304,500.0,0.00015,30]
[339364491,1727481758643,500.0,0.00015,30]
[339364492,1727481770784,369.43,9.61e-05,2]
[339364493,1727481864806,1050.0,0.00011,2]
[339364494,1727481895371,209.38,0.00010959,2]
[339364495,1727482039996,500.0,0.00015,30]
[339364496,1727482040321,500.0,0.00015,30]
[339364520,1727482046876,500.0,0.00015,30]
[339364521,1727482048636,500.0,0.00015,30]
[339364522,1727482053445,500.0,0.00015,30]
[339364523,1727482053965,500.0,0.00015,30]
[339364524,1727482054330,500.0,0.00015,30]
[339364527,1727482178821,154.75,0.00013918,30]
[339364529,1727482231723,-500.0,0.00011164,2]
[339364530,1727482231733,-500.0,0.00011164,2]
[339364531,1727482231743,-261.91,0.00011193,2]
[339364532,1727482231752,-4064.75,0.00011193,2]
[339364533,1727482231761,-250.0,0.00011209,2]
[339364534,1727482231770,-1000.0,0.00011223,2]
[339364535,1727482231779,-356.89,0.00011227,2]
[339364536,1727482231789,-218.44,0.00011235,2]
[339364537,1727482231798,-212.31568255,0.00011297,2]
[339364538,1727482231882,-1135.78431745,0.00011297,2]
[339364539,1727482231892,-432.74,0.00011378,2]
[339364540,1727482231901,-250.0,0.00011378,2]
[339364541,1727482231910,-416.2455,0.00011402,2]
[339364542,1727482231919,-300.0,0.00011489,2]
[339364543,1727482231928,-150.0,0.0001149,2]
[339364544,1727482231936,-150.0,0.0001149,2]
[339364545,1727482231946,-150.00000001,0.0001149,2]
[339364546,1727482231954,-150.0,0.0001149,2]
[339364547,1727482231963,-150.0,0.0001149,2]
[339364548,1727482231972,-150.0,0.0001149,2]
[339364549,1727482231982,-274.22481592,0.0001149,2]
[339364550,1727482231991,-150.0,0.0001149,2]
[339364551,1727482232000,-150.0,0.0001149,2]
[339364552,1727482232009,-150.0,0.0001149,2]
[339364553,1727482232018,-150.0,0.0001149,2]
[339364554,1727482232027,-150.74577474,0.0001149,2]
[339364555,1727482232036,-150.0,0.0001149,2]
[339364556,1727482232045,-163.55045149,0.0001149,2]
[339364557,1727482232054,-150.0,0.0001149,2]
[339364558,1727482232063,-150.0,0.0001149,2]
[339364559,1727482232072,-150.0,0.00011534,2]
[339364560,1727482232081,-150.0,0.00011551,2]
[339364561,1727482232090,-1712.08993439,0.00011552,2]
[339364562,1727482232244,-3174.23006561,0.00011552,2]
[339364563,1727482232253,-38.55808898,0.00011578,2]
[339364564,1727482238020,-111.44191102,0.00011578,2]
[339364565,1727482238029,-299.99,0.00011578,2]
[339364566,1727482238039,-3545.65,0.00011578,2]
[339364567,1727482238047,-1187.31,0.00011611,2]
[339364568,1727482238057,-402.23,0.00011615,2]
[339364569,1727482238067,-150.0,0.00011622,2]
[339364570,1727482238076,-150.0,0.00011632,2]
[339364571,1727482238086,-168.72,0.00011657,2]
[339364572,1727482238095,-180.76,0.00011657,2]
[339364573,1727482238104,-773.24,0.00011663,2]
[339364574,1727482238114,-150.0,0.00011667,2]
[339364575,1727482238123,-284.31,0.00011694,2]
[339364576,1727482238133,-150.0,0.00011711,2]
[339364577,1727482238143,-180.76,0.00011715,2]
[339364578,1727482238152,-150.0,0.00011755,2]
[339364579,1727482238162,-150.0,0.00011774,2]
[339364580,1727482238172,-151.05,0.00011778,2]
[339364581,1727482238181,-150.0,0.00011799,2]
[339364582,1727482238190,-150.0,0.0001181,2]
[339364583,1727482238199,-150.0,0.00011843,2]
[339364584,1727482238208,-369.43,0.00011874,2]
[339364585,1727482238217,-167.02,0.00011878,2]
[339364586,1727482238226,-150.0,0.00011878,2]
[339364587,1727482238234,-428.44,0.00011878,2]
[339364588,1727482238244,-152.43,0.00011878,2]
[339364589,1727482238253,-150.0,0.00011878,2]
[339364590,1727482238262,-150.0,0.00011887,2]
[339364591,1727482238271,-150.0,0.00011916,2]
[339364592,1727482238279,-150.0,0.00011931,2]
[339364593,1727482238288,-150.0,0.00011975,2]
[339364595,1727482238297,-150.0,0.00011978,2]
[339364597,1727482238306,-150.0,0.00011978,2]
[339364599,1727482238316,-150.0,0.00011978,2]
[339364600,1727482238324,-150.0,0.00011978,2]
[339364601,1727482238334,-150.0,0.00012019,2]
[339364602,1727482238343,-150.0,0.00012058,2]
[339364603,1727482238352,-150.0,0.00012063,2]
[339364604,1727482238362,-179.68,0.00012099,2]
[339364605,1727482238371,-150.0,0.00012107,2]
[339364606,1727482238380,-150.0,0.00012129,2]
[339364607,1727482238389,-150.0,0.00012151,2]
[339364608,1727482238399,-150.0,0.00012178,2]
[339364609,1727482238408,-150.0,0.00012178,2]
[339364610,1727482238417,-150.0,0.00012178,2]
[339364611,1727482238426,-150.0,0.00012178,2]
[339364612,1727482238435,-259.48,0.00012192,2]
[339364613,1727482238445,-151.04,0.00012192,2]
[339364614,1727482238454,-358.25,0.00012192,2]
[339364615,1727482238463,-358.25,0.00012192,2]
[339364616,1727482238472,-150.0,0.00012195,2]
[339364617,1727482238481,-150.0,0.000122,2]
[339364618,1727482238491,-150.0,0.00012239,2]
[339364619,1727482238500,-150.0,0.00012283,2]
[339364620,1727482238509,-150.0,0.00012327,2]
[339364621,1727482238519,-1199.75,0.00012329,2]
[339364622,1727482238528,-150.0,0.00012342,2]
[339364623,1727482238538,-150.0,0.00012371,2]
[339364624,1727482238547,-422.61,0.0001239,2]
[339364625,1727482238556,-150.0,0.00012415,2]
[339364626,1727482238566,-167.9,0.00012445,2]
[339364627,1727482238575,-164.0,0.00012445,2]
[339364628,1727482238584,-150.0,0.00012448,2]
[339364629,1727482238593,-160.74,0.00012449,2]
[339364630,1727482238602,-150.0,0.00012459,2]
[339364631,1727482238612,-150.0,0.00012483,2]
[339364632,1727482238623,-150.0,0.000125,2]
[339364633,1727482238633,-428.44,0.000125,2]
[339364634,1727482238642,-150.0,0.000125,2]
[339364635,1727482238651,-150.0,0.00012503,2]
[339364636,1727482238661,-500.0,0.00012534,2]
[339364637,1727482238670,-150.0,0.00012547,2]
[339364638,1727482238680,-1282.6985,0.00012582,2]
[339364639,1727482238689,-150.0,0.00012591,2]
[339364640,1727482238698,-404.48494116,0.00012593,2]
[339364641,1727482238708,-150.0,0.00012599,2]
[339364642,1727482238718,-150.0,0.00012599,2]
[339364643,1727482238727,-150.0,0.00012599,2]
[339364644,1727482238737,-150.0,0.00012599,2]
[339364645,1727482238748,-150.0,0.00012599,2]
[339364646,1727482238757,-150.0,0.00012599,2]
[339364647,1727482238767,-150.0,0.00012599,2]
[339364648,1727482238776,-150.0,0.00012599,2]
[339364649,1727482238794,-150.0,0.00012599,2]
[339364650,1727482238803,-150.0,0.00012599,2]
[339364651,1727482238813,-856.56,0.000126,2]
[339364652,1727482238822,-428.44,0.000126,2]
[339364653,1727482238832,-150.0,0.000126,2]
[339364654,1727482238842,-150.0,0.000126,2]
[339364655,1727482238852,-150.0,0.000126,2]
[339364656,1727482238862,-150.0,0.000126,2]
[339364657,1727482238873,-300.0,0.000126,2]
[339364658,1727482238883,-7500.0,0.00012606,2]
[339364659,1727482238892,-167.0,0.00012614,2]
[339364660,1727482238903,-420.0,0.00012619,2]
[339364661,1727482238913,-150.0,0.00012625,2]
[339364662,1727482238922,-1000.0,0.00012626,2]
[339364663,1727482238932,-150.0,0.00012635,2]
[339364664,1727482238942,-218.44,0.00012639,2]
[339364665,1727482238953,-5364.83656123,0.00012672,2]
[339364666,1727482238962,-5869.0,0.00012674,2]
[339364667,1727482238971,-152.368,0.00012674,2]
[339364668,1727482238981,-13496.0,0.00012674,2]
[339364669,1727482238991,-1147.0,0.00012674,2]
[339364670,1727482239000,-1734.4512,0.00012675,2]
[339364671,1727482239010,-150.0,0.00012679,2]
[339364672,1727482239019,-500.0,0.0001268,2]
[339364673,1727482239029,-2000.0,0.0001268,2]
[339364674,1727482239039,-500.0,0.0001268,2]
[339364675,1727482239048,-500.0,0.0001268,2]
[339364676,1727482239058,-31058.6001,0.00012682,2]
[339364677,1727482239067,-1000.0,0.00012682,2]
[339364678,1727482239077,-7649.3468,0.00012682,2]
[339364679,1727482239087,-1932.03553782,0.00012683,2]
[339364680,1727482239097,-1654.10276294,0.00012683,2]
[339364681,1727482239107,-179.31398523,0.00012696,2]
[339364682,1727482239117,-151.62,0.00012696,2]
[339364683,1727482239127,-151.62,0.00012697,2]
[339364684,1727482239137,-151.62,0.00012697,2]
[339364685,1727482239147,-500.0,0.00012705,2]
[339364686,1727482239156,-421.17070954,0.00012705,2]
[339364687,1727482239166,-597268.19041043,0.00012706,2]
[339364688,1727482239176,-500.0,0.00012706,2]
[339364689,1727482239186,-500.0,0.00012706,2]
[339364690,1727482239196,-500.0,0.00012706,2]
[339364691,1727482239204,-500.0,0.00012706,2]
[339364692,1727482239214,-164.92241734,0.00012706,2]
[339364693,1727482239224,-874862.84314148,0.00012706,2]
[339364694,1727482239233,-150.0,0.00012723,2]
[339364695,1727482239243,-150.0,0.00012746,2]
[339364696,1727482239252,-150.0,0.00012767,2]
[339364697,1727482239261,-150.0,0.00012767,2]
[339364698,1727482239271,-150.0,0.00012767,2]
[339364699,1727482239280,-154.75942801,0.00012767,2]
[339364700,1727482239289,-150.0,0.00012767,2]
[339364701,1727482239299,-256.43231536,0.00012767,2]
[339364702,1727482239309,-150.0,0.00012767,2]
[339364703,1727482239318,-150.0,0.00012767,2]
[339364704,1727482239328,-151.63472797,0.00012767,2]
[339364705,1727482239338,-399.89385234,0.00012773,2]
[339364706,1727482239348,-500.0,0.00012773,2]
[339364707,1727482239357,-500.0,0.00012773,2]
[339364708,1727482239367,-150.0,0.00012773,2]
[339364709,1727482239377,-150.0,0.00012775,2]
[339364710,1727482239387,-150.0,0.00012776,2]
[339364711,1727482239396,-150.0,0.00012777,2]
[339364712,1727482239405,-200.75,0.00012778,2]
[339364713,1727482239415,-156.624,0.00012778,2]
[339364714,1727482239424,-150.0,0.00012778,2]
[339364715,1727482239434,-500.0,0.0001278,2]
[339364716,1727482239443,-500.0,0.0001278,2]
[339364717,1727482239452,-150.01,0.00012781,2]
[339364718,1727482239461,-1806.51972294,0.00012781,2]
[339364719,1727482239470,-500.0,0.00012781,2]
[339364720,1727482239480,-401.01319866,0.00012781,2]
[339364721,1727482239490,-500.0,0.00012781,2]
[339364722,1727482239499,-500.0,0.00012781,2]
[339364723,1727482239508,-231.251451,0.00012782,2]
[339364724,1727482239518,-231.251451,0.00012782,2]
[339364725,1727482239527,-231.251451,0.00012782,2]
[339364726,1727482239537,-231.251451,0.00012782,2]
[339364727,1727482239546,-231.251451,0.00012782,2]
[339364728,1727482239555,-231.251451,0.00012782,2]
[339364729,1727482239566,-231.251451,0.00012782,2]
[339364730,1727482239575,-231.251451,0.00012782,2]
[339364731,1727482239585,-231.251451,0.00012782,2]
[339364732,1727482239594,-151.0,0.00012782,2]
[339364733,1727482239603,-151.0,0.00012782,2]
[339364734,1727482239612,-151.0,0.00012782,2]
[339364735,1727482239621,-151.0,0.00012782,2]
[339364736,1727482239631,-151.0,0.00012782,2]
[339364737,1727482239640,-151.0,0.00012782,2]
[339364738,1727482239651,-151.0,0.00012782,2]
[339364739,1727482239660,-151.0,0.00012782,2]
[339364740,1727482239670,-151.0,0.00012782,2]
[339364741,1727482239680,-151.0,0.00012782,2]
[339364742,1727482239689,-151.0,0.00012782,2]
[339364743,1727482239698,-151.0,0.00012782,2]
[339364744,1727482239708,-151.669221,0.00012782,2]
[339364745,1727482239717,-151.0,0.00012782,2]
[339364746,1727482239727,-151.0,0.00012782,2]
[339364747,1727482239736,-151.988222,0.00012782,2]
[339364748,1727482239745,-151.0,0.00012782,2]
[339364749,1727482239754,-151.0,0.00012782,2]
[339364750,1727482239763,-151.0,0.00012782,2]
[339364751,1727482239773,-151.0,0.00012782,2]
[339364752,1727482239783,-151.0,0.00012782,2]
[339364753,1727482239792,-151.0,0.00012782,2]
[339364754,1727482239801,-151.0,0.00012782,2]
[339364755,1727482239811,-151.0,0.00012782,2]
[339364756,1727482239820,-151.0,0.00012782,2]
[339364757,1727482239829,-151.0,0.00012782,2]
[339364758,1727482239838,-151.0,0.00012782,2]
[339364759,1727482239848,-220.302357,0.00012782,2]
[339364760,1727482239857,-220.302357,0.00012782,2]
[339364761,1727482239869,-220.302357,0.00012782,2]
[339364762,1727482239878,-220.302357,0.00012782,2]
[339364763,1727482239887,-220.302357,0.00012782,2]
[339364764,1727482239896,-220.302357,0.00012782,2]
[339364765,1727482239905,-220.302357,0.00012782,2]
[339364766,1727482239915,-220.302357,0.00012782,2]
[339364767,1727482239923,-220.302357,0.00012782,2]
[339364768,1727482239933,-220.302357,0.00012782,2]
[339364769,1727482239942,-220.302357,0.00012782,2]
[339364770,1727482239951,-220.302357,0.00012782,2]
[339364771,1727482239961,-220.302357,0.00012782,2]
[339364772,1727482239970,-220.302357,0.00012782,2]
[339364773,1727482239979,-220.302357,0.00012782,2]
[339364774,1727482239989,-220.302357,0.00012782,2]
[339364775,1727482239998,-151.0,0.00012782,2]
[339364776,1727482240008,-151.0,0.00012782,2]
[339364777,1727482240018,-151.0,0.00012782,2]
[339364779,1727482240027,-151.0,0.00012782,2]
[339364781,1727482240036,-151.0,0.00012782,2]
[339364783,1727482240045,-151.0,0.00012782,2]
[339364785,1727482240054,-151.0,0.00012782,2]
[339364787,1727482240064,-151.0,0.00012782,2]
[339364789,1727482240073,-151.0,0.00012782,2]
[339364791,1727482240082,-151.0,0.00012782,2]
[339364793,1727482240091,-151.0,0.00012782,2]
[339364795,1727482240101,-151.0,0.00012782,2]
[339364797,1727482240110,-151.0,0.00012782,2]
[339364799,1727482240119,-151.0,0.00012782,2]
[339364801,1727482240128,-151.0,0.00012782,2]
[339364803,1727482240137,-151.0,0.00012782,2]
[339364805,1727482240147,-151.0,0.00012782,2]
[339364807,1727482240156,-237.139003,0.00012782,2]
[339364809,1727482240166,-230.441077,0.00012782,2]
[339364811,1727482240175,-230.441077,0.00012782,2]
[339364813,1727482240184,-230.441077,0.00012782,2]
[339364815,1727482240194,-151.0,0.00012782,2]
[339364817,1727482240203,-151.0,0.00012782,2]
[339364819,1727482240212,-151.0,0.00012782,2]
[339364820,1727482240221,-230.441077,0.00012782,2]
[339364822,1727482240230,-151.0,0.00012782,2]
[339364824,1727482240240,-230.441077,0.00012782,2]
[339364825,1727482240249,-151.0,0.00012782,2]
[339364826,1727482240258,-230.441077,0.00012782,2]
[339364827,1727482240453,-151.0,0.00012782,2]
[339364828,1727482240462,-151.0,0.00012782,2]
[339364829,1727482240472,-151.0,0.00012782,2]
[339364830,1727482240481,-151.0,0.00012782,2]
[339364831,1727482240491,-151.0,0.00012782,2]
[339364832,1727482240500,-151.0,0.00012782,2]
[339364833,1727482240509,-151.0,0.00012782,2]
[339364834,1727482240519,-151.0,0.00012782,2]
[339364835,1727482240528,-151.0,0.00012782,2]
[339364836,1727482240537,-151.0,0.00012782,2]
[339364837,1727482240546,-151.0,0.00012782,2]
[339364838,1727482240555,-151.0,0.00012782,2]
[339364839,1727482240565,-151.0,0.00012782,2]
[339364840,1727482240575,-151.0,0.00012782,2]
[339364841,1727482240584,-151.0,0.00012782,2]
[339364842,1727482240593,-151.0,0.00012782,2]
[339364843,1727482240602,-151.0,0.00012782,2]
[339364844,1727482240611,-151.0,0.00012782,2]
[339364845,1727482240621,-151.0,0.00012782,2]
[339364846,1727482240630,-151.0,0.00012782,2]
[339364847,1727482240639,-188.326012,0.00012782,2]
[339364848,1727482240649,-151.0,0.00012782,2]
[339364849,1727482240658,-151.0,0.00012782,2]
[339364850,1727482240667,-151.0,0.00012782,2]
[339364851,1727482240677,-151.0,0.00012782,2]
[339364852,1727482240686,-151.0,0.00012782,2]
[339364853,1727482240696,-151.0,0.00012782,2]
[339364854,1727482240706,-151.0,0.00012782,2]
[339364855,1727482240715,-151.0,0.00012782,2]
[339364856,1727482240724,-151.0,0.00012782,2]
[339364857,1727482240733,-151.0,0.00012782,2]
[339364858,1727482240742,-151.0,0.00012782,2]
[339364859,1727482240751,-151.0,0.00012782,2]
[339364860,1727482240760,-440.502024,0.00012782,2]
[339364861,1727482240770,-440.502024,0.00012782,2]
[339364862,1727482240779,-440.502024,0.00012782,2]
[339364863,1727482240788,-440.502024,0.00012782,2]
[339364864,1727482240798,-440.502024,0.00012782,2]
[339364865,1727482240807,-440.502024,0.00012782,2]
[339364866,1727482240818,-309.250316,0.00012782,2]
[339364867,1727482240827,-309.250316,0.00012782,2]
[339364868,1727482240836,-309.250316,0.00012782,2]
[339364869,1727482240845,-309.250316,0.00012782,2]
[339364870,1727482240854,-309.250316,0.00012782,2]
[339364871,1727482240865,-309.250316,0.00012782,2]
[339364872,1727482240875,-309.250316,0.00012782,2]
[339364873,1727482240884,-309.250316,0.00012782,2]
[339364874,1727482240893,-309.250316,0.00012782,2]
[339364875,1727482240903,-309.250316,0.00012782,2]
[339364876,1727482240913,-309.250316,0.00012782,2]
[339364877,1727482240922,-309.250316,0.00012782,2]
[339364878,1727482240931,-309.250316,0.00012782,2]
[339364879,1727482240940,-309.250316,0.00012782,2]
[339364880,1727482240949,-151.0,0.00012782,2]
[339364881,1727482240959,-151.0,0.00012782,2]
[339364882,1727482240968,-188.015055,0.00012782,2]
[339364883,1727482240977,-165.319258,0.00012782,2]
[339364884,1727482240986,-165.319258,0.00012782,2]
[339364885,1727482240995,-165.319258,0.00012782,2]
[339364886,1727482241004,-165.319258,0.00012782,2]
[339364887,1727482241013,-165.319258,0.00012782,2]
[339364888,1727482241022,-165.319258,0.00012782,2]
[339364889,1727482241031,-165.319258,0.00012782,2]
[339364890,1727482241041,-165.319258,0.00012782,2]
[339364891,1727482241050,-165.319258,0.00012782,2]
[339364892,1727482241060,-165.319258,0.00012782,2]
[339364893,1727482241069,-165.319258,0.00012782,2]
[339364894,1727482241078,-165.319258,0.00012782,2]
[339364895,1727482241087,-165.319258,0.00012782,2]
[339364896,1727482241097,-165.319258,0.00012782,2]
[339364897,1727482241106,-151.0,0.00012782,2]
[339364898,1727482241116,-155.318584,0.00012782,2]
[339364899,1727482241125,-151.0,0.00012782,2]
[339364900,1727482241135,-193.816717,0.00012782,2]
[339364901,1727482241147,-151.0,0.00012782,2]
[339364902,1727482241156,-151.0,0.00012782,2]
[339364903,1727482241164,-151.0,0.00012782,2]
[339364904,1727482241172,-151.0,0.00012782,2]
[339364905,1727482241182,-151.0,0.00012782,2]
[339364906,1727482241191,-151.0,0.00012782,2]
[339364907,1727482241200,-226.2952,0.00012782,2]
[339364908,1727482241209,-1195.881535,0.00012782,2]
[339364909,1727482241218,-151.0,0.00012782,2]
[339364910,1727482241227,-1195.881535,0.00012782,2]
[339364911,1727482241236,-151.0,0.00012782,2]
[339364912,1727482241245,-1195.881535,0.00012782,2]
[339364913,1727482241255,-151.0,0.00012782,2]
[339364914,1727482241264,-1195.881535,0.00012782,2]
[339364915,1727482241273,-151.0,0.00012782,2]
[339364916,1727482241283,-1195.881535,0.00012782,2]
[339364917,1727482241292,-151.0,0.00012782,2]
[339364918,1727482241301,-1195.881535,0.00012782,2]
[339364919,1727482241311,-151.0,0.00012782,2]
[339364920,1727482241320,-1195.881535,0.00012782,2]
[339364921,1727482241330,-151.0,0.00012782,2]
[339364922,1727482241340,-1195.881535,0.00012782,2]
[339364923,1727482241349,-1195.881535,0.00012782,2]
[339364924,1727482241358,-1195.881535,0.00012782,2]
[339364925,1727482241367,-1195.881535,0.00012782,2]
[339364926,1727482241376,-1195.881535,0.00012782,2]
[339364927,1727482241385,-1195.881535,0.00012782,2]
[339364928,1727482241394,-1195.881535,0.00012782,2]
[339364929,1727482241402,-151.0,0.00012782,2]
[339364930,1727482241412,-151.0,0.00012782,2]
[339364931,1727482241421,-151.0,0.00012782,2]
[339364932,1727482241430,-151.0,0.00012782,2]
[339364933,1727482241439,-151.0,0.00012782,2]
[339364934,1727482241449,-254.229395,0.00012782,2]
[339364935,1727482241458,-151.0,0.00012782,2]
[339364936,1727482241467,-151.0,0.00012782,2]
[339364937,1727482241476,-151.0,0.00012782,2]
[339364938,1727482241485,-151.0,0.00012782,2]
[339364939,1727482241495,-151.0,0.00012782,2]
[339364940,1727482241504,-151.0,0.00012782,2]
[339364941,1727482241513,-151.0,0.00012782,2]
[339364942,1727482241522,-199.670884,0.00012782,2]
[339364943,1727482241531,-199.670884,0.00012782,2]
[339364944,1727482241540,-199.670884,0.00012782,2]
[339364945,1727482241549,-199.670884,0.00012782,2]
[339364946,1727482241558,-199.670884,0.00012782,2]
[339364947,1727482241568,-199.670884,0.00012782,2]
[339364948,1727482241577,-199.670884,0.00012782,2]
[339364949,1727482241586,-199.670884,0.00012782,2]
[339364950,1727482241595,-199.670884,0.00012782,2]
[339364951,1727482241604,-199.670884,0.00012782,2]
[339364952,1727482241614,-199.670884,0.00012782,2]
[339364953,1727482241623,-199.670884,0.00012782,2]
[339364954,1727482241633,-199.670884,0.00012782,2]
[339364955,1727482241644,-199.670884,0.00012782,2]
[339364956,1727482241655,-162.603439,0.00012782,2]
[339364957,1727482241665,-162.603439,0.00012782,2]
[339364958,1727482241674,-162.603439,0.00012782,2]
[339364959,1727482241683,-162.603439,0.00012782,2]
[339364960,1727482241693,-162.603439,0.00012782,2]
[339364961,1727482241701,-162.603439,0.00012782,2]
[339364962,1727482241711,-162.603439,0.00012782,2]
[339364963,1727482241719,-162.603439,0.00012782,2]
[339364964,1727482241729,-162.603439,0.00012782,2]
[339364965,1727482241738,-162.603439,0.00012782,2]
[339364966,1727482241747,-162.603439,0.00012782,2]
[339364967,1727482241755,-162.603439,0.00012782,2]
[339364968,1727482241764,-162.603439,0.00012782,2]
[339364969,1727482241773,-162.603439,0.00012782,2]
[339364970,1727482241783,-262.087638,0.00012782,2]
[339364971,1727482241792,-262.087638,0.00012782,2]
[339364972,1727482241801,-262.087638,0.00012782,2]
[339364973,1727482241810,-262.087638,0.00012782,2]
[339364974,1727482241819,-262.087638,0.00012782,2]
[339364975,1727482241827,-262.087638,0.00012782,2]
[339364976,1727482241836,-262.087638,0.00012782,2]
[339364977,1727482241845,-262.087638,0.00012782,2]
[339364978,1727482241855,-262.087638,0.00012782,2]
[339364979,1727482241864,-262.087638,0.00012782,2]
[339364980,1727482241873,-262.087638,0.00012782,2]
[339364981,1727482241882,-262.087638,0.00012782,2]
[339364982,1727482241891,-262.087638,0.00012782,2]
[339364983,1727482241900,-262.087638,0.00012782,2]
[339364984,1727482241909,-1700.829644,0.00012782,2]
[339364985,1727482241918,-1700.829644,0.00012782,2]
[339364986,1727482241927,-1700.829644,0.00012782,2]
[339364987,1727482241936,-1700.829644,0.00012782,2]
[339364988,1727482241945,-1700.829644,0.00012782,2]
[339364989,1727482241955,-1700.829644,0.00012782,2]
[339364990,1727482241964,-1700.829644,0.00012782,2]
[339364991,1727482241973,-1700.829644,0.00012782,2]
[339364992,1727482241982,-1700.829644,0.00012782,2]
[339364993,1727482241991,-1700.829644,0.00012782,2]
[339364994,1727482242000,-1700.829644,0.00012782,2]
[339364995,1727482242009,-1700.829644,0.00012782,2]
[339364996,1727482242018,-151.0,0.00012782,2]
[339364997,1727482242027,-151.0,0.00012782,2]
[339364998,1727482242035,-151.0,0.00012782,2]
[339364999,1727482242044,-151.0,0.00012782,2]
[339365000,1727482242053,-151.0,0.00012782,2]
[339365001,1727482242062,-274.759995,0.00012782,2]
[339365002,1727482242072,-221.898976,0.00012782,2]
[339365003,1727482242081,-221.898976,0.00012782,2]
[339365004,1727482242090,-221.898976,0.00012782,2]
[339365005,1727482242099,-221.898976,0.00012782,2]
[339365006,1727482242108,-221.898976,0.00012782,2]
[339365007,1727482242118,-221.898976,0.00012782,2]
[339365008,1727482242127,-151.0,0.00012782,2]
[339365009,1727482242136,-151.0,0.00012782,2]
[339365010,1727482242145,-151.0,0.00012782,2]
[339365011,1727482242154,-151.0,0.00012782,2]
[339365012,1727482242163,-151.0,0.00012782,2]
[339365013,1727482242174,-221.898976,0.00012782,2]
[339365014,1727482242183,-151.0,0.00012782,2]
[339365015,1727482242192,-221.898976,0.00012782,2]
[339365016,1727482242201,-221.898976,0.00012782,2]
[339365017,1727482242210,-221.898976,0.00012782,2]
[339365018,1727482242219,-221.898976,0.00012782,2]
[339365019,1727482242228,-221.898976,0.00012782,2]
[339365020,1727482242237,-184.999938,0.00012782,2]
[339365021,1727482242246,-151.0,0.00012782,2]
[339365022,1727482242255,-151.0,0.00012782,2]
[339365023,1727482242264,-151.0,0.00012782,2]
[339365024,1727482242274,-151.0,0.00012782,2]
[339365025,1727482242283,-151.0,0.00012782,2]
[339365026,1727482242292,-151.0,0.00012782,2]
[339365027,1727482242301,-151.0,0.00012782,2]
[339365028,1727482242310,-151.0,0.00012782,2]
[339365029,1727482242320,-151.0,0.00012782,2]